bitfinex/quotes_SOLUSD_20240615
["timestamp","ask_amount","ask_price","bid_price","bid_amount"]
[1718432658143,7.21,144.88,144.86,17.879]
[1718432658336,7.21,144.88,144.86,7.6623]
[1718432658723,7.21,144.88,144.86,2.554]
[1718432659429,7.21,144.89,144.86,2.554]
[1718432659622,7.21,144.89,144.87,2.5539]
[1718432661422,7.21,144.89,144.86,2.5541]
[1718432661753,7.21,144.88,144.86,2.5541]
[1718432661926,7.21,144.88,144.86,15.3248]
[1718432662323,7.21,144.88,144.86,7.6623]
[1718432662553,7.21,144.88,144.87,2.554]
[1718432663750,7.21,144.88,144.86,25.5414]
[1718432663951,7.21,144.88,144.86,17.8789]
[1718432664665,7.21,144.88,144.86,2.554]
[1718432665661,7.21,144.88,144.85,2.5543]
[1718432665846,7.21,144.87,144.85,2.5543]
[1718432666829,7.21,144.87,144.85,7.6629]
[1718432667666,7.21,144.87,144.84,25.5448]
[1718432668033,7.21,144.87,144.85,2.5543]
[1718432670261,7.21,144.87,144.85,7.663]
[1718432670644,0.17,144.85,144.8,2.5551]
[1718432670961,0.17,144.85,144.81,2.555]
[1718432671139,0.17,144.85,144.77,15.7246]
[1718432671341,15.7731,144.89,144.77,15.7246]
[1718432671342,0.17,144.89,144.82,7.21]
[1718432671559,0.17,144.89,144.86,2.5541]
[1718432671560,7.21,144.88,144.86,2.5541]
[1718432671954,7.19996999,144.9,144.83,7.21]
[1718432672148,7.21,144.89,144.87,7.6617]
[1718432672468,7.19996999,144.9,144.89,25.5364]
[1718432672879,7.21,144.91,144.88,2.5537]
[1718432673172,7.21,144.91,144.89,2.5536]
[1718432673368,7.21,144.91,144.88,7.6612]
[1718432673562,7.21,144.91,144.87,17.8773]
[1718432673563,107.21,144.91,144.85,7.21]
[1718432673762,7.21,144.89,144.84,22.9905]
[1718432673954,7.21,144.9,144.87,2.5539]
[1718432674156,7.21,144.9,144.86,5.1083]
[1718432674352,7.21,144.9,144.87,2.554]
[1718432674553,100.0,144.91,144.86,7.6623]
[1718432674748,7.21,144.9,144.86,7.6623]
[1718432675060,4.47256042,144.89,144.86,2.554]
[1718432675571,0.10333333,144.88,144.87,7.662]
[1718432675775,0.10333333,144.88,144.87,2.554]
[1718432676575,0.10333333,144.88,144.84,7.6632]
[1718432676746,0.10333333,144.88,144.86,2.5541]
[1718432676953,0.10333333,144.88,144.85,7.6628]
[1718432677569,0.10333333,144.88,144.84,22.9897]
[1718432677875,7.21,144.86,144.84,2.5545]
[1718432678078,0.10333333,144.88,144.85,2.5543]
[1718432678385,0.10333333,144.85,144.84,7.6634]
[1718432678596,0.10333333,144.85,144.82,2.5548]
[1718432678755,7.21,144.84,144.81,7.6647]
[1718432679081,7.21,144.84,144.81,2.5549]
[1718432679447,0.17,144.83,144.74,15.3102]
[1718432679649,7.21,144.81,144.79,2.5553]
[1718432679882,7.21,144.81,144.8,2.5552]
[1718432680066,7.21,144.82,144.8,2.5552]
[1718432680260,7.21,144.82,144.79,7.6661]
[1718432680466,7.21,144.82,144.78,22.9997]
[1718432680777,7.21,144.81,144.79,2.5553]
[1718432681150,7.21,144.82,144.79,7.6658]
[1718432681352,7.21,144.82,144.8,7.6655]
[1718432681552,7.21,144.82,144.81,2.555]
[1718432681849,7.21,144.82,144.77,2.5556]
[1718432682073,7.21,144.8,144.76,17.8909]
[1718432682257,7.21,144.8,144.75,7.21]
[1718432682457,7.21,144.81,144.78,7.6667]
[1718432683046,7.21,144.81,144.78,2.5555]
[1718432683246,7.21,144.81,144.78,7.6666]
[1718432683755,7.21,144.81,144.78,2.5555]
[1718432684854,100.0,144.83,144.78,17.8889]
[1718432685053,7.21,144.81,144.78,2.5555]
[1718432685872,7.21,144.81,144.78,7.6666]
[1718432686765,7.21,144.8,144.78,2.5555]
[1718432686962,7.21,144.8,144.77,15.3339]
[1718432687178,7.21,144.8,144.78,2.5556]
[1718432687485,7.21,144.8,144.77,7.6669]
[1718432688492,7.21,144.8,144.77,5.1113]
[1718432688658,7.21,144.8,144.76,23.0023]
[1718432688979,7.21,144.78,144.76,2.5558]
[1718432689964,7.21,144.78,144.77,2.5557]
[1718432690359,7.21,144.78,144.77,7.6672]
[1718432690685,100.0,144.81,144.77,7.6671]
[1718432690686,7.21,144.79,144.77,7.6671]
[1718432691178,7.21,144.78,144.76,15.3352]
[1718432691582,7.21,144.78,144.77,2.5557]
[1718432691770,7.21,144.78,144.76,23.0027]
[1718432691971,7.21,144.78,144.77,2.5557]
[1718432692481,7.21,144.78,144.76,23.0027]
[1718432692784,7.21,144.78,144.77,2.5557]
[1718432693177,7.21,144.78,144.76,23.0027]
[1718432693178,7.21,144.78,144.76,5.1116]
[1718432693365,7.21,144.78,144.76,7.6677]
[1718432694389,100.0,144.77,144.74,2.5562]
[1718432694687,7.21,144.76,144.74,7.6688]
[1718432695086,7.18,144.75,144.73,2.5563]
[1718432695291,7.18,144.75,144.73,7.6692]
[1718432695787,7.21,144.76,144.73,15.3385]
[1718432695993,7.21,144.76,144.73,7.6692]
[1718432696292,7.21,144.76,144.73,15.3386]
[1718432696667,100.0,144.77,144.73,15.3386]
[1718432696881,7.21,144.76,144.73,15.3386]
[1718432697081,7.21,144.75,144.73,7.6692]
[1718432697263,7.21,144.74,144.71,2.5567]
[1718432697465,7.21,144.73,144.72,2.5566]
[1718432697675,7.31333333,144.73,144.71,23.0112]
[1718432697980,7.31333333,144.73,144.72,2.5566]
[1718432698188,7.31333333,144.73,144.72,7.6699]
[1718432698494,0.10333333,144.73,144.72,2.5566]
[1718432698663,7.31333333,144.73,144.72,2.5566]
[1718432699077,0.10333333,144.73,144.72,25.5664]
[1718432701895,0.10333333,144.73,144.72,32.7764]
[1718432702997,0.10333333,144.73,144.72,25.5664]
[1718432705290,0.10333333,144.73,144.72,32.7764]
[1718432706179,0.10333333,144.73,144.72,48.6008]
[1718432707381,0.10333333,144.73,144.72,41.3908]
[1718432707590,0.10333333,144.73,144.72,48.6008]
[1718432709571,0.10333333,144.73,144.72,41.3908]
[1718432712295,0.10333333,144.73,144.72,41.9008]
[1718432712684,0.10333333,144.73,144.72,41.3908]
[1718432716675,0.10333333,144.73,144.72,7.6699]
[1718432716890,0.10333333,144.73,144.72,15.3398]
[1718432717215,0.10333333,144.73,144.72,25.5664]
[1718432717379,0.10333333,144.73,144.71,7.6703]
[1718432717708,0.10333333,144.73,144.71,15.3408]
[1718432719002,0.10333333,144.73,144.72,2.5566]
[1718432719710,0.10333333,144.73,144.71,2.5566]
[1718432720004,0.10333333,144.73,144.71,7.6701]
[1718432720211,0.10333333,144.73,144.72,2.5566]
[1718432721005,0.10333333,144.73,144.72,7.6699]
[1718432721217,0.10333333,144.73,144.72,2.5566]
[1718432722298,0.10333333,144.73,144.71,15.3405]
[1718432722479,0.10333333,144.73,144.72,2.5566]
[1718432722680,0.10333333,144.73,144.71,2.5568]
[1718432722902,0.10333333,144.73,144.71,7.6704]
[1718432723103,0.10333333,144.73,144.72,2.5566]
[1718432723305,0.10333333,144.73,144.72,15.3398]
[1718432723491,0.10333333,144.73,144.72,25.5664]
[1718432725185,0.10333333,144.73,144.72,7.6699]
[1718432726019,0.10333333,144.73,144.72,2.5566]
[1718432726311,0.10333333,144.73,144.72,7.6699]
[1718432726698,0.10333333,144.73,144.71,2.5567]
[1718432727909,0.10333333,144.73,144.72,7.6699]
[1718432728507,0.10333333,144.73,144.72,15.3398]
[1718432728805,0.10333333,144.73,144.72,2.5566]
[1718432731386,0.10333333,144.73,144.71,25.5674]
[1718432731618,0.10333333,144.73,144.71,7.6701]
[1718432731794,0.10333333,144.73,144.71,2.5567]
[1718432731984,7.31333333,144.73,144.71,2.5567]
[1718432732727,0.10333333,144.73,144.71,2.5567]
[1718432733020,7.21,144.72,144.66,15.1014]
[1718432733191,7.21,144.69,144.68,7.6719]
[1718432734098,7.21,144.69,144.68,15.344]
[1718432734612,7.21,144.69,144.68,25.5734]
[1718432735598,7.21,144.69,144.64,0.864938]
[1718432735799,7.21,144.67,144.66,25.5768]
[1718432736120,7.21,144.68,144.67,2.5574]
[1718432736312,6.40034,144.68,144.67,2.5574]
[1718432737294,6.40034,144.68,144.66,7.6729]
[1718432737895,7.21,144.69,144.68,2.5573]
[1718432739305,7.21,144.69,144.67,25.5747]
[1718432739505,7.21,144.69,144.68,2.5573]
[1718432740429,7.21,144.69,144.67,23.0174]
[1718432740619,7.21,144.69,144.68,2.5573]
[1718432742021,7.21,144.69,144.67,23.0174]
[1718432742222,7.21,144.69,144.67,25.5747]
[1718432742621,7.21,144.68,144.67,2.5573]
[1718432743002,7.21,144.68,144.66,2.5576]
[1718432743204,100.0,144.7,144.65,2.5577]
[1718432743404,7.21,144.66,144.65,2.5577]
[1718432743604,102.557,144.7,144.65,2.5577]
[1718432743816,7.21,144.67,144.65,7.6734]
[1718432744337,0.43666666,144.66,144.65,7.6734]
[1718432744842,0.43666666,144.66,144.65,25.5785]
[1718432749839,0.43666666,144.66,144.65,7.6734]
[1718432750030,0.43666666,144.66,144.65,15.347]
[1718432752219,0.43666666,144.66,144.65,2.5578]
[1718432752951,0.43666666,144.66,144.65,25.5786]
[1718432753634,0.43666666,144.66,144.65,7.6735]
[1718432755850,0.43666666,144.66,144.65,2.5578]
[1718432757347,0.43666666,144.66,144.65,7.6735]
[1718432758637,0.43666666,144.66,144.65,2.5578]
[1718432758837,0.43666666,144.66,144.65,7.6735]
[1718432759157,0.43666666,144.66,144.65,25.5786]
[1718432762354,0.43666666,144.66,144.65,32.7886]
[1718432763049,15.825,144.78,144.66,0.17]
[1718432763242,106.0594,144.79,144.75,2.556]
[1718432763444,7.21,144.76,144.72,25.5652]
[1718432763635,7.21,144.75,144.72,2.5565]
[1718432763955,7.21,144.74,144.72,2.5566]
[1718432764333,7.21,144.74,144.72,7.6699]
[1718432764534,7.21,144.74,144.71,2.5567]
[1718432764837,2.556,144.76,144.71,2.5567]
[1718432764838,7.21,144.73,144.71,2.5567]
[1718432765044,7.21,144.73,144.71,7.6703]
[1718432765249,7.21,144.73,144.72,2.5566]
[1718432765646,7.21,144.73,144.72,15.3398]
[1718432765958,7.21,144.74,144.73,7.6693]
[1718432766154,0.17,144.78,144.74,15.3373]
[1718432766365,7.21,144.75,144.74,15.3373]
[1718432766668,7.21,144.76,144.75,2.5561]
[1718432766846,0.51,144.78,144.74,15.3376]
[1718432767048,100.0,144.81,144.76,2.5558]
[1718432767255,7.21,144.77,144.76,2.5558]
[1718432767559,7.21,144.77,144.72,7.21]
[1718432767742,7.21,144.75,144.73,7.669]
[1718432767934,7.21,144.75,144.74,2.5563]
[1718432768355,7.21,144.75,144.74,15.3378]
[1718432769139,100.0,144.78,144.75,15.3365]
[1718432769345,7.21,144.76,144.75,15.3365]
[1718432769646,100.0,144.78,144.75,15.3365]
[1718432769647,7.21,144.77,144.75,2.5561]
[1718432769850,7.21,144.76,144.74,5.1123]
[1718432770056,7.21,144.76,144.74,7.6685]
[1718432770359,7.21,144.75,144.73,5.1127]
[1718432770568,100.0,144.78,144.71,16.6333]
[1718432770759,7.21,144.76,144.75,2.556]
[1718432770965,7.21,144.76,144.74,5.1124]
[1718432770966,7.21,144.76,144.74,23.0062]
[1718432771163,7.21,144.75,144.74,15.3375]
[1718432771353,7.21,144.75,144.74,17.8938]
[1718432771549,7.21,144.75,144.74,25.5627]
[1718432772470,100.0,144.78,144.74,7.6687]
[1718432772671,7.21,144.75,144.74,7.6687]
[1718432773166,7.21,144.75,144.74,25.5628]
[1718432774657,7.21,144.75,144.74,2.5563]
[1718432774858,7.21,144.75,144.74,7.6689]
[1718432775158,7.21,144.75,144.74,25.563]
[1718432776248,7.21,144.76,144.75,15.3365]
[1718432776669,7.21,144.76,144.75,2.556]
[1718432776877,7.21,144.76,144.75,7.6682]
[1718432777247,0.68,144.79,144.75,7.6682]
[1718432777499,0.68,144.79,144.75,15.3365]
[1718432777772,7.21,144.76,144.75,2.556]
[1718432778077,7.21,144.76,144.74,7.6684]
[1718432778269,7.21,144.75,144.74,7.6684]
[1718432779854,0.68,144.79,144.76,2.5558]
[1718432780064,7.21,144.77,144.76,7.6677]
[1718432780648,7.21,144.77,144.76,2.5558]
[1718432781775,7.21,144.77,144.75,25.5602]
[1718432782686,0.17,144.79,144.76,2.5559]
[1718432782687,7.21,144.78,144.76,2.5559]
[1718432783070,7.21,144.78,144.75,25.5602]
[1718432783584,7.21,144.78,144.75,23.0043]
[1718432783783,7.21,144.78,144.75,25.5603]
[1718432784171,7.21,144.78,144.75,7.668]
[1718432784374,7.21,144.76,144.69,10.2282]
[1718432784683,7.21,144.75,144.73,2.5564]
[1718432785081,7.21,144.75,144.73,7.6693]
[1718432785483,7.21,144.75,144.73,2.5564]
[1718432785669,7.21,144.75,144.73,7.6693]
[1718432786669,7.21,144.75,144.72,2.5566]
[1718432786867,7.21,144.75,144.72,7.6699]
[1718432787894,7.21,144.74,144.68,15.4156]
[1718432788083,7.21,144.73,144.71,2.5568]
[1718432788769,7.21,144.73,144.71,7.6704]
[1718432789087,100.0,144.76,144.73,2.5564]
[1718432789300,7.21,144.74,144.73,2.5564]
[1718432789695,7.21,144.75,144.73,7.6693]
[1718432789879,7.21,144.75,144.73,15.3387]
[1718432790370,7.21,144.75,144.73,7.6693]
[1718432790773,7.21,144.75,144.73,2.5564]
[1718432791307,2.7257,144.77,144.72,25.5657]
[1718432791485,7.21,144.75,144.72,7.6696]
[1718432791676,7.21,144.74,144.72,7.6696]
[1718432792067,2.7257,144.77,144.72,7.6696]
[1718432792271,7.21,144.74,144.72,15.3395]
[1718432792512,7.21,144.74,144.72,7.6696]
[1718432792694,7.21,144.74,144.73,2.5564]
[1718432792907,7.21,144.74,144.72,15.3395]
[1718432793191,132.0254,144.78,144.74,12.7812]
[1718432793192,0.34,144.78,144.74,12.7812]
[1718432793401,7.21,144.76,144.74,7.6686]
[1718432795392,7.21,144.76,144.74,2.5562]
[1718432796106,7.21,144.76,144.73,25.5638]
[1718432796811,7.21,144.76,144.73,7.669]
[1718432796993,7.21,144.75,144.72,7.6696]
[1718432797804,7.21,144.74,144.71,7.6702]
[1718432797984,7.21,144.74,144.72,2.5566]
[1718432798182,7.21,144.74,144.71,23.0112]
[1718432798390,102.5559,144.77,144.72,7.6698]
[1718432798607,7.21,144.75,144.72,7.6698]
[1718432798791,7.21,144.74,144.7,17.8985]
[1718432798992,7.21,144.73,144.71,2.5567]
[1718432799317,7.21,144.72,144.7,25.569]
[1718432799826,100.0,144.74,144.68,15.4156]
[1718432800101,7.21,144.7,144.68,7.6719]
[1718432800279,0.17,144.72,144.68,7.6719]
[1718432800479,7.21,144.7,144.68,7.6719]
[1718432800679,7.21,144.7,144.68,2.5573]
[1718432800897,0.17,144.72,144.66,7.673]
[1718432800898,7.21,144.69,144.66,7.673]
[1718432801095,2.5568,144.71,144.66,7.673]
[1718432801096,7.21,144.68,144.66,7.673]
[1718432801312,7.21,144.68,144.66,2.5576]
[1718432801701,102.7267,144.72,144.67,2.5574]
[1718432801900,7.21,144.68,144.66,2.5576]
[1718432802213,7.21,144.68,144.66,7.673]
[1718432802887,0.17,144.7,144.66,7.673]
[1718432803088,7.21,144.69,144.67,7.6725]
[1718432803283,0.51,144.71,144.67,7.6725]
[1718432803510,7.21,144.69,144.67,7.6725]
[1718432804421,7.21,144.69,144.67,2.5575]
[1718432805087,102.7266,144.72,144.67,7.6724]
[1718432805285,7.21,144.69,144.67,7.6724]
[1718432805887,7.21,144.69,144.67,2.5575]
[1718432807297,7.21,144.69,144.66,25.5763]
[1718432807683,7.21,144.69,144.66,7.6727]
[1718432807890,7.21,144.69,144.66,2.5575]
[1718432808701,7.21,144.69,144.66,7.6729]
[1718432810415,7.21,144.69,144.66,2.5575]
[1718432813201,107.84,144.72,144.66,7.6729]
[1718432813405,7.21,144.7,144.66,15.346]
[1718432813609,7.21,144.7,144.66,7.6729]
[1718432814006,7.21,144.7,144.66,25.5768]
[1718432814900,7.21,144.7,144.66,7.6729]
[1718432816016,7.21,144.7,144.65,23.0201]
[1718432816393,7.21,144.7,144.66,2.5576]
[1718432816907,7.21,144.7,144.67,2.5573]
[1718432817108,7.21,144.72,144.67,23.0174]
[1718432817313,7.21,144.72,144.68,2.5573]
[1718432817519,7.21,144.72,144.68,7.672]
[1718432818027,7.21,144.72,144.68,2.5573]
[1718432818500,7.21,144.72,144.67,25.5747]
[1718432818700,7.21,144.71,144.68,2.5573]
[1718432819201,7.6694,144.73,144.68,2.5573]
[1718432819514,7.21,144.71,144.68,7.672]
[1718432819829,2.5563,144.74,144.69,7.6714]
[1718432820004,7.21,144.72,144.69,2.5571]
[1718432820206,7.21,144.72,144.68,12.7865]
[1718432820403,7.21,144.72,144.68,7.6717]
[1718432820630,7.21,144.72,144.68,2.5572]
[1718432821005,7.21,144.71,144.68,7.6719]
[1718432821726,7.21,144.71,144.69,2.5571]
[1718432822020,7.21,144.71,144.68,7.6719]
[1718432822422,25.5634,144.74,144.69,2.5571]
[1718432822595,25.5634,144.74,144.69,7.6713]
[1718432822596,7.21,144.71,144.69,7.6713]
[1718432824614,7.21,144.71,144.69,15.3428]
[1718432825433,7.21,144.71,144.7,2.557]
[1718432825627,7.21,144.71,144.7,5.114]
[1718432825935,7.21,144.72,144.7,2.557]
[1718432827510,7.21,144.72,144.69,25.5714]
[1718432827709,7.21,144.72,144.7,7.6709]
[1718432827918,7.21,144.72,144.7,2.5569]
[1718432828430,0.33333334,144.71,144.7,2.5569]
[1718432828930,0.33333334,144.71,144.7,7.6709]
[1718432829732,0.33333334,144.71,144.68,17.9013]
[1718432829928,7.54333334,144.71,144.69,2.5571]
[1718432830230,7.54333334,144.71,144.68,25.573]
[1718432830430,7.54333334,144.71,144.68,7.6718]
[1718432830733,7.21,144.7,144.67,7.6723]
[1718432830930,7.21,144.7,144.67,12.7875]
[1718432831137,0.33333334,144.69,144.67,15.3449]
[1718432831307,0.33333334,144.69,144.68,2.5573]
[1718432831508,0.33333334,144.69,144.68,15.3441]
[1718432831730,0.33333334,144.69,144.68,25.5735]
[1718432834433,0.33333334,144.69,144.68,32.7835]
[1718432838330,0.33333334,144.69,144.68,25.5735]
[1718432839049,0.33333334,144.69,144.68,2.5573]
[1718432839218,0.33333334,144.69,144.68,7.672]
[1718432840238,0.33333334,144.69,144.68,15.3441]
[1718432840730,0.33333334,144.69,144.68,2.5573]
[1718432840928,0.33333334,144.69,144.68,15.3441]
[1718432841344,0.33333334,144.69,144.68,25.5735]
[1718432843861,0.33333334,144.69,144.64,16.141938]
[1718432844173,0.33333334,144.69,144.66,23.0192]
[1718432844447,7.21,144.68,144.66,7.6728]
[1718432844644,7.21,144.68,144.66,2.5576]
[1718432844848,7.21,144.68,144.66,7.673]
[1718432845354,7.21,144.68,144.65,7.6733]
[1718432846913,25.5685,144.71,144.65,7.6733]
[1718432847117,7.21,144.68,144.65,7.6733]
[1718432847320,7.21,144.68,144.65,15.3469]
[1718432848551,7.21,144.68,144.66,2.5577]
[1718432850187,0.17,144.65,144.64,0.864938]
[1718432850336,7.38,144.65,144.64,0.864938]
[1718432850541,7.21,144.65,144.64,0.864938]
[1718432850873,110.2778,144.65,144.64,0.864938]
[1718432851036,107.72,144.65,144.64,0.864938]
[1718432852143,110.2778,144.65,144.64,0.864938]
[1718432852754,107.72,144.65,144.64,0.864938]
[1718432853664,115.5635,144.65,144.64,0.864938]
[1718432853845,133.4686,144.65,144.64,0.864938]
[1718432854859,110.4478,144.65,144.64,0.864938]
[1718432855254,115.5635,144.65,144.64,0.864938]
[1718432857169,110.4478,144.65,144.64,0.864938]
[1718432857554,107.89,144.65,144.64,0.864938]
[1718432857758,110.4478,144.65,144.64,0.864938]
[1718432857966,100.17,144.65,144.64,0.864938]
[1718432858275,7.21,144.65,144.64,0.864938]
[1718432859282,15.0535,144.65,144.64,0.864938]
[1718432859498,10.4478,144.65,144.64,0.864938]
[1718432860086,7.21,144.65,144.64,0.864938]
[1718432861775,14.8835,144.65,144.64,0.864938]
[1718432861976,2.5578,144.65,144.64,0.864938]
[1718432862162,7.21,144.65,144.64,0.864938]
[1718432863074,42.13635361,144.69,144.64,0.864938]
[1718432863075,12.7872,144.68,144.64,0.864938]
[1718432863278,7.21,144.65,144.64,0.864938]
[1718432864782,2.5575,144.67,144.64,0.864938]
[1718432865085,7.21,144.65,144.64,0.864938]
[1718432865277,2.5575,144.67,144.64,0.864938]
[1718432865479,7.21,144.65,144.64,0.864938]
[1718432867995,7.21,144.66,144.64,0.864938]
[1718432869902,28.84,144.69,144.64,0.864938]
[1718432870188,2.5573,144.68,144.64,0.864938]
[1718432870396,7.21,144.66,144.64,0.864938]
[1718432872089,7.672,144.68,144.64,0.864938]
[1718432872398,7.21,144.66,144.64,0.864938]
[1718432873798,31.3972,144.69,144.64,3.422938]
[1718432874096,7.21,144.66,144.64,3.422938]
[1718432875294,115.8524,144.7,144.64,5.981038]
[1718432875498,3.067,144.7,144.65,2.5577]
[1718432875680,7.21,144.67,144.64,26.445038]
[1718432876210,7.21,144.67,144.64,8.538838]
[1718432876709,7.21,144.67,144.64,3.422838]
[1718432877300,7.21,144.66,144.64,3.422838]
[1718432877495,7.21,144.66,144.64,0.864938]
[1718432877797,7.21,144.66,144.64,3.422938]
[1718432878694,7.21,144.66,144.64,0.864938]
[1718432879098,44.1831,144.69,144.64,3.422938]
[1718432879282,2.5573,144.68,144.64,0.864938]
[1718432879482,44.1832,144.69,144.64,3.422938]
[1718432880414,31.3973,144.69,144.64,8.539038]
[1718432880608,36.5117,144.69,144.64,3.422938]
[1718432880995,7.21,144.66,144.64,3.422938]
[1718432881720,7.21,144.66,144.65,2.5578]
[1718432882087,7.21,144.67,144.65,2.5578]
[1718432882816,7.21,144.67,144.64,23.887238]
[1718432883016,2.5568,144.71,144.66,25.5763]
[1718432883227,7.21,144.69,144.67,23.0176]
[1718432883506,7.21,144.68,144.65,7.6735]
[1718432883682,7.21,144.68,144.66,2.5576]
[1718432883683,7.51588278,144.68,144.66,2.5576]
[1718432885702,7.51588278,144.68,144.66,7.673]
[1718432885703,0.30588278,144.68,144.66,7.673]
[1718432885910,0.30588278,144.68,144.67,2.5575]
[1718432886206,0.30588278,144.68,144.67,25.5752]
[1718432887232,0.30588278,144.68,144.67,40.8378]
[1718432891608,0.30588278,144.68,144.67,54.4493]
[1718432893217,7.21,144.74,144.7,7.6707]
[1718432893406,7.21,144.74,144.7,15.3417]
[1718432894591,7.21,144.74,144.71,2.5568]
[1718432895321,0.30588278,144.73,144.71,2.5568]
[1718432895815,0.30588278,144.73,144.72,2.5566]
[1718432896017,0.30588278,144.73,144.72,25.5664]
[1718432899532,0.30588278,144.73,144.72,2.5566]
[1718432899825,0.30588278,144.73,144.72,25.5664]
[1718432900031,0.30588278,144.73,144.72,2.5566]
[1718432900531,0.30588278,144.73,144.7,23.0127]
[1718432900714,0.30588278,144.73,144.7,25.5695]
[1718432900914,7.51588278,144.73,144.7,25.5695]
[1718432901221,7.51588278,144.73,144.69,5.1143]
[1718432901222,0.30588278,144.73,144.69,5.1143]
[1718432901420,0.30588278,144.73,144.7,2.5569]
[1718432902226,0.30588278,144.73,144.69,17.8999]
[1718432902927,0.30588278,144.73,144.7,7.6709]
[1718432903728,0.30588278,144.73,144.72,15.3398]
[1718432903924,7.51588278,144.73,144.7,10.2279]
[1718432904109,7.51588278,144.73,144.71,2.5568]
[1718432904305,0.30588278,144.73,144.68,7.21]
[1718432904526,0.30588278,144.73,144.72,2.5566]
[1718432905032,7.51588278,144.73,144.71,7.6701]
[1718432905325,7.51588278,144.73,144.71,2.5567]
[1718432905701,7.21,144.72,144.71,45.0]
[1718432905899,7.21,144.72,144.7,45.0]
[1718432906813,0.30588278,144.71,144.7,47.557]
[1718432907219,0.30588278,144.71,144.7,52.671]
[1718432907412,0.30588278,144.71,144.7,70.57]
[1718432907625,0.30588278,144.71,144.7,47.557]
[1718432907821,0.30588278,144.71,144.7,2.557]
[1718432908422,0.30588278,144.71,144.69,17.8998]
[1718432908625,0.30588278,144.71,144.69,25.5713]
[1718432909237,0.30588278,144.71,144.7,2.557]
[1718432909534,0.30588278,144.71,144.69,2.557]
[1718432909839,7.51588278,144.71,144.69,7.6713]
[1718432910326,7.51588278,144.71,144.68,25.5727]
[1718432910522,7.21,144.7,144.68,2.5572]
[1718432910935,0.30588278,144.69,144.68,7.6719]
[1718432911429,0.30588278,144.69,144.68,15.344]
[1718432912234,0.30588278,144.69,144.68,25.5734]
[1718432912619,7.51588278,144.69,144.68,2.5572]
[1718432912816,7.51588278,144.69,144.68,7.6719]
[1718432913017,7.51588278,144.69,144.68,2.5572]
[1718432915341,7.51588278,144.69,144.68,7.6719]
[1718432916335,7.51588278,144.69,144.68,25.5734]
[1718432917533,7.51588278,144.69,144.68,2.5572]
[1718432919425,7.51588278,144.69,144.68,7.6719]
[1718432919724,7.51588278,144.69,144.67,17.9022]
[1718432919725,7.51588278,144.69,144.67,2.5573]
[1718432920032,7.21,144.68,144.66,7.6727]
[1718432920339,7.21,144.68,144.67,7.6725]
[1718432920551,7.21,144.69,144.68,2.5573]
[1718432920716,7.21,144.69,144.66,7.6729]
[1718432920919,7.21,144.68,144.66,7.6729]
[1718432921139,7.51588278,144.68,144.66,7.6729]
[1718432921449,7.51588278,144.68,144.67,2.5575]
[1718432922726,0.30588278,144.68,144.67,2.5575]
[1718432922931,0.30588278,144.68,144.66,23.0192]